[Event "Titled Tuesday Blitz June 13 Early 2023"]
[White "Goncalves, Davi Sulzbacher"]
[Black "Pakleza, Zbigniew"]
[WhiteFideId "2154510"]
[BlackFideId "1119290"]
[WhiteElo "2182"]
[BlackElo "2410"]
[Result "0-1"]
[Round "1"]
[TimeControl "180+2"]
[Date "2023.06.13"]
[WhiteClock "0:00:00"]
[BlackClock "0:00:05"]
[Board "89"]

1. Nf3 {[%clk 0:02:56]}  d5 {[%clk 0:02:59]} 2. g3 {[%clk 0:02:56]}  Nf6 {[%clk 0:02:59]} 3. Bg2 {[%clk 0:02:57]}  Bf5 {[%clk 0:03:00]} 4. O-O {[%clk 0:02:57]}  e6 {[%clk 0:03:00]} 5. b3 {[%clk 0:02:57]}  Be7 {[%clk 0:03:00]} 6. Bb2 {[%clk 0:02:58]}  O-O {[%clk 0:03:01]} 7. d3 {[%clk 0:02:50]}  h6 {[%clk 0:03:01]} 8. Nbd2 {[%clk 0:02:51]}  Bh7 {[%clk 0:02:58]} 9. c4 {[%clk 0:02:48]}  c6 {[%clk 0:02:58]} 10. Rc1 {[%clk 0:02:48]}  a5 {[%clk 0:02:55]} 11. a3 {[%clk 0:02:47]}  Nbd7 {[%clk 0:02:54]} 12. Re1 {[%clk 0:02:44]}  Qb6 {[%clk 0:02:52]} 13. e4 {[%clk 0:02:17]}  Nc5 {[%clk 0:02:38]} 14. Bd4 {[%clk 0:02:11]}  dxe4 {[%clk 0:02:37]} 15. dxe4 {[%clk 0:02:08]}  Rfd8 {[%clk 0:02:35]} 16. Qe2 {[%clk 0:01:56]}  Qc7 {[%clk 0:02:09]} 17. Qe3 {[%clk 0:01:33]}  Ncd7 {[%clk 0:01:21]} 18. c5 {[%clk 0:01:20]}  Ng4 {[%clk 0:00:58]} 19. Qe2 {[%clk 0:00:51]}  Nde5 {[%clk 0:00:56]} 20. h3 {[%clk 0:00:48]}  Nxf3+ {[%clk 0:00:56]} 21. Nxf3 {[%clk 0:00:48]}  Nf6 {[%clk 0:00:56]} 22. Be5 {[%clk 0:00:43]}  Qc8 {[%clk 0:00:53]} 23. Nd2 {[%clk 0:00:39]}  Nd7 {[%clk 0:00:42]} 24. Bd4 {[%clk 0:00:39]}  e5 {[%clk 0:00:27]} 25. Be3 {[%clk 0:00:37]}  Qc7 {[%clk 0:00:27]} 26. Red1 {[%clk 0:00:30]}  Kf8 {[%clk 0:00:22]} 27. f4 {[%clk 0:00:16]}  f6 {[%clk 0:00:20]} 28. Qf2 {[%clk 0:00:12]}  Bg8 {[%clk 0:00:19]} 29. Bf1 {[%clk 0:00:11]}  Be6 {[%clk 0:00:14]} 30. f5 {[%clk 0:00:10]}  Bf7 {[%clk 0:00:14]} 31. g4 {[%clk 0:00:11]}  Nb8 {[%clk 0:00:05]} 32. Bc4 {[%clk 0:00:11]}  Na6 {[%clk 0:00:04]} 33. Bxf7 {[%clk 0:00:10]}  Kxf7 {[%clk 0:00:05]} 34. Qe2 {[%clk 0:00:08]}  Rd7 {[%clk 0:00:03]} 35. Qc4+ {[%clk 0:00:07]}  Kf8 {[%clk 0:00:04]} 36. Nf3 {[%clk 0:00:07]}  Rad8 {[%clk 0:00:04]} 37. Rxd7 {[%clk 0:00:06]}  Qxd7 {[%clk 0:00:05]} 38. b4 {[%clk 0:00:06]}  axb4 {[%clk 0:00:04]} 39. Nh4 {[%clk 0:00:05]}  Qd3 {[%clk 0:00:04]} 40. Ng6+ {[%clk 0:00:05]}  Ke8 {[%clk 0:00:05]} 41. Qg8+ {[%clk 0:00:05]}  Kd7 {[%clk 0:00:05]} 42. Qe6+ {[%clk 0:00:06]}  Kc7 {[%clk 0:00:05]} 43. Bf2 {[%clk 0:00:03]}  Bxc5 {[%clk 0:00:02]} 44. Bxc5 {[%clk 0:00:02]}  Nxc5 {[%clk 0:00:03]} 45. Qe7+ {[%clk 0:00:02]}  Nd7 {[%clk 0:00:03]} 46. Qxb4 {[%clk 0:00:03]}  Qd4+ {[%clk 0:00:02]} 47. Qxd4 {[%clk 0:00:03]}  exd4 {[%clk 0:00:03]} 48. e5 {[%clk 0:00:03]}  Nxe5 {[%clk 0:00:03]} 49. Nxe5 {[%clk 0:00:03]}  fxe5 {[%clk 0:00:04]} 50. Rd1 {[%clk 0:00:03]}  c5 {[%clk 0:00:04]} 51. Kf2 {[%clk 0:00:04]}  c4 {[%clk 0:00:04]} 52. Ke2 {[%clk 0:00:05]}  e4 {[%clk 0:00:04]} 53. Kd2 {[%clk 0:00:05]}  Kc6 {[%clk 0:00:04]} 54. Kc2 {[%clk 0:00:06]}  Kd5 {[%clk 0:00:05]} 55. Re1 {[%clk 0:00:06]}  e3 {[%clk 0:00:05]} 56. Rb1 {[%clk 0:00:07]}  d3+ {[%clk 0:00:04]} 57. Kc3 {[%clk 0:00:08]}  e2 {[%clk 0:00:04]} 58. Kd2 {[%clk 0:00:08]}  Kd4 {[%clk 0:00:05]} 59. Rc1 {[%clk 0:00:08]}  b5 {[%clk 0:00:04]} 60. Rb1 {[%clk 0:00:05]}  c3+ {[%clk 0:00:04]} 61. Ke1 {[%clk 0:00:00]}  Ke3 {[%clk 0:00:05]} 0-1


[Site "https://www.chess.com"]

[Event "Titled Tuesday Blitz June 13 Early 2023"]
[White "Albornoz Cabrera, Carlos Daniel"]
[Black "LeoLV10"]
[WhiteFideId "3518736"]
[WhiteElo "2540"]
[BlackElo "2421"]
[Result "1-0"]
[Round "1"]
[TimeControl "180+2"]
[Date "2023.06.13"]
[WhiteClock "0:02:10"]
[BlackClock "0:00:13"]
[Board "94"]

1. d4 {[%clk 0:03:00]}  Nf6 {[%clk 0:02:58]} 2. c4 {[%clk 0:02:58]}  e6 {[%clk 0:02:58]} 3. Nc3 {[%clk 0:02:58]}  Bb4 {[%clk 0:02:58]} 4. e3 {[%clk 0:02:58]}  O-O {[%clk 0:02:52]} 5. Bd3 {[%clk 0:02:58]}  d5 {[%clk 0:02:50]} 6. cxd5 {[%clk 0:02:58]}  exd5 {[%clk 0:02:51]} 7. a3 {[%clk 0:02:57]}  Be7 {[%clk 0:02:44]} 8. Nf3 {[%clk 0:02:54]}  Re8 {[%clk 0:02:41]} 9. O-O {[%clk 0:02:54]}  Nbd7 {[%clk 0:02:35]} 10. b4 {[%clk 0:02:53]}  Nf8 {[%clk 0:02:31]} 11. Ne5 {[%clk 0:02:52]}  Ng6 {[%clk 0:02:31]} 12. f4 {[%clk 0:02:52]}  Bd6 {[%clk 0:02:18]} 13. Bd2 {[%clk 0:02:52]}  c6 {[%clk 0:02:16]} 14. Qf3 {[%clk 0:02:51]}  Qc7 {[%clk 0:01:52]} 15. Rac1 {[%clk 0:02:50]}  a6 {[%clk 0:01:49]} 16. Na4 {[%clk 0:02:48]}  Ne4 {[%clk 0:01:27]} 17. Be1 {[%clk 0:02:46]}  f5 {[%clk 0:01:20]} 18. Nc5 {[%clk 0:02:44]}  Nf8 {[%clk 0:01:12]} 19. h3 {[%clk 0:02:37]}  b6 {[%clk 0:01:04]} 20. Nb3 {[%clk 0:02:37]}  Bd7 {[%clk 0:01:02]} 21. g4 {[%clk 0:02:36]}  Rad8 {[%clk 0:00:41]} 22. gxf5 {[%clk 0:02:34]}  Bxf5 {[%clk 0:00:41]} 23. Rxc6 {[%clk 0:02:34]}  Qb7 {[%clk 0:00:33]} 24. Rc2 {[%clk 0:02:31]}  Qe7 {[%clk 0:00:25]} 25. Nc6 {[%clk 0:02:26]}  Qf6 {[%clk 0:00:24]} 26. Nxd8 {[%clk 0:02:26]}  Rxd8 {[%clk 0:00:25]} 27. Nd2 {[%clk 0:02:23]}  Qg6+ {[%clk 0:00:24]} 28. Qg2 {[%clk 0:02:17]}  Qe6 {[%clk 0:00:16]} 29. Nxe4 {[%clk 0:02:15]}  Bxe4 {[%clk 0:00:12]} 30. Bxe4 {[%clk 0:02:15]}  dxe4 {[%clk 0:00:13]} 31. Bh4 {[%clk 0:02:14]}  Re8 {[%clk 0:00:12]} 32. f5 {[%clk 0:02:15]}  Qb3 {[%clk 0:00:12]} 33. f6 {[%clk 0:02:13]}  Qxe3+ {[%clk 0:00:12]} 34. Bf2 {[%clk 0:02:13]}  Qh6 {[%clk 0:00:11]} 35. f7+ {[%clk 0:02:14]}  Kxf7 {[%clk 0:00:12]} 36. Be3+ {[%clk 0:02:14]}  Qf6 {[%clk 0:00:11]} 37. Rxf6+ {[%clk 0:02:14]}  gxf6 {[%clk 0:00:12]} 38. Qg4 {[%clk 0:02:12]}  Ng6 {[%clk 0:00:13]} 39. Qd7+ {[%clk 0:02:12]}  Be7 {[%clk 0:00:13]} 40. Qd5+ {[%clk 0:02:10]}  Kg7 {[%clk 0:00:13]} 41. Rc7 {[%clk 0:02:10]}  Kf8 {[%clk 0:00:13]} 42. Bh6# {[%clk 0:02:10]} 1-0


[Site "https://www.chess.com"]

[Event "Titled Tuesday Blitz June 13 Early 2023"]
[White "Danielyan, Vahe"]
[Black "KorolDimitriy75"]
[WhiteFideId "13304828"]
[WhiteElo "2423"]
[BlackElo "2415"]
[Result "1-0"]
[Round "1"]
[TimeControl "180+2"]
[Date "2023.06.13"]
[WhiteClock "0:00:54"]
[BlackClock "0:00:13"]
[Board "96"]

1. e4 {[%clk 0:03:00]}  c5 {[%clk 0:02:59]} 2. Nc3 {[%clk 0:03:00]}  g6 {[%clk 0:02:59]} 3. d4 {[%clk 0:02:59]}  cxd4 {[%clk 0:02:58]} 4. Qxd4 {[%clk 0:02:58]}  Nf6 {[%clk 0:02:58]} 5. Be3 {[%clk 0:02:58]}  Nc6 {[%clk 0:02:58]} 6. Qd2 {[%clk 0:02:57]}  Bg7 {[%clk 0:02:58]} 7. f3 {[%clk 0:02:57]}  O-O {[%clk 0:02:57]} 8. O-O-O {[%clk 0:02:56]}  Qa5 {[%clk 0:02:55]} 9. Kb1 {[%clk 0:02:53]}  d6 {[%clk 0:02:53]} 10. Nge2 {[%clk 0:02:50]}  Bd7 {[%clk 0:02:22]} 11. h4 {[%clk 0:02:46]}  Rfc8 {[%clk 0:02:21]} 12. Bh6 {[%clk 0:02:39]}  Ne5 {[%clk 0:02:09]} 13. Nd5 {[%clk 0:02:28]}  Qxd2 {[%clk 0:00:23]} 14. Nxe7+ {[%clk 0:02:27]}  Kf8 {[%clk 0:00:23]} 15. Bxg7+ {[%clk 0:02:27]}  Kxg7 {[%clk 0:00:24]} 16. Rxd2 {[%clk 0:02:26]}  Re8 {[%clk 0:00:23]} 17. Nd5 {[%clk 0:02:23]}  Nc4 {[%clk 0:00:20]} 18. Rd4 {[%clk 0:02:18]}  Nxd5 {[%clk 0:00:19]} 19. Rxd5 {[%clk 0:02:08]}  Be6 {[%clk 0:00:15]} 20. Rd4 {[%clk 0:01:46]}  Rad8 {[%clk 0:00:14]} 21. Nc3 {[%clk 0:01:44]}  Ne5 {[%clk 0:00:13]} 22. Bb5 {[%clk 0:01:43]}  Re7 {[%clk 0:00:13]} 23. Rhd1 {[%clk 0:01:44]}  a6 {[%clk 0:00:12]} 24. Be2 {[%clk 0:01:37]}  Red7 {[%clk 0:00:12]} 25. Nd5 {[%clk 0:01:38]}  Bxd5 {[%clk 0:00:11]} 26. Rxd5 {[%clk 0:01:39]}  Kf8 {[%clk 0:00:12]} 27. b3 {[%clk 0:01:31]}  Ke7 {[%clk 0:00:12]} 28. Kb2 {[%clk 0:01:31]}  Nc6 {[%clk 0:00:11]} 29. a3 {[%clk 0:01:28]}  Ne5 {[%clk 0:00:11]} 30. c4 {[%clk 0:01:27]}  Nc6 {[%clk 0:00:11]} 31. Kc3 {[%clk 0:01:26]}  h5 {[%clk 0:00:10]} 32. b4 {[%clk 0:01:26]}  Ne5 {[%clk 0:00:10]} 33. c5 {[%clk 0:01:24]}  f6 {[%clk 0:00:10]} 34. cxd6+ {[%clk 0:01:07]}  Rxd6 {[%clk 0:00:11]} 35. Rxd6 {[%clk 0:01:08]}  Rxd6 {[%clk 0:00:11]} 36. Rxd6 {[%clk 0:01:09]}  Kxd6 {[%clk 0:00:12]} 37. Bc4 {[%clk 0:01:05]}  Kc6 {[%clk 0:00:10]} 38. Kd4 {[%clk 0:01:03]}  Kd6 {[%clk 0:00:10]} 39. Bd5 {[%clk 0:01:03]}  b6 {[%clk 0:00:09]} 40. f4 {[%clk 0:00:59]}  Nd7 {[%clk 0:00:09]} 41. Bf7 {[%clk 0:00:59]}  Nf8 {[%clk 0:00:09]} 42. e5+ {[%clk 0:00:58]}  fxe5+ {[%clk 0:00:09]} 43. fxe5+ {[%clk 0:00:58]}  Ke7 {[%clk 0:00:10]} 44. Bc4 {[%clk 0:00:56]}  b5 {[%clk 0:00:10]} 45. Bd5 {[%clk 0:00:56]}  Nd7 {[%clk 0:00:10]} 46. Bb7 {[%clk 0:00:54]}  Nb8 {[%clk 0:00:10]} 47. Kd5 {[%clk 0:00:54]}  Kd7 {[%clk 0:00:11]} 48. e6+ {[%clk 0:00:54]}  Kc7 {[%clk 0:00:11]} 49. Ke5 {[%clk 0:00:55]}  Kxb7 {[%clk 0:00:11]} 50. Kf6 {[%clk 0:00:52]}  Nc6 {[%clk 0:00:12]} 51. e7 {[%clk 0:00:50]}  Nxe7 {[%clk 0:00:11]} 52. Kxe7 {[%clk 0:00:51]}  Kc6 {[%clk 0:00:12]} 53. Ke6 {[%clk 0:00:50]}  a5 {[%clk 0:00:12]} 54. g3 {[%clk 0:00:47]}  axb4 {[%clk 0:00:11]} 55. axb4 {[%clk 0:00:48]}  Kb6 {[%clk 0:00:11]} 56. Kd6 {[%clk 0:00:48]}  Ka6 {[%clk 0:00:11]} 57. Kc5 {[%clk 0:00:49]}  Ka7 {[%clk 0:00:11]} 58. Kxb5 {[%clk 0:00:50]}  Kb7 {[%clk 0:00:12]} 59. Kc5 {[%clk 0:00:50]}  Kc7 {[%clk 0:00:12]} 60. b5 {[%clk 0:00:51]}  Kb7 {[%clk 0:00:13]} 61. b6 {[%clk 0:00:52]}  Kb8 {[%clk 0:00:12]} 62. Kc6 {[%clk 0:00:52]}  Kc8 {[%clk 0:00:12]} 63. b7+ {[%clk 0:00:49]}  Kb8 {[%clk 0:00:13]} 64. Kb6 {[%clk 0:00:50]}  g5 {[%clk 0:00:13]} 65. hxg5 {[%clk 0:00:51]}  h4 {[%clk 0:00:14]} 66. g6 {[%clk 0:00:52]}  hxg3 {[%clk 0:00:12]} 67. g7 {[%clk 0:00:53]}  g2 {[%clk 0:00:13]} 68. g8=Q# {[%clk 0:00:54]} 1-0


[Site "https://www.chess.com"]

[Event "Titled Tuesday Blitz June 13 Early 2023"]
[White "Rastbod, Ali"]
[Black "Topalov, Aleksandar"]
[WhiteFideId "12567477"]
[BlackFideId "925659"]
[WhiteElo "2281"]
[BlackElo "2151"]
[Result "1-0"]
[Round "1"]
[TimeControl "180+2"]
[Date "2023.06.13"]
[WhiteClock "0:00:05"]
[BlackClock "0:00:01"]
[Board "98"]

1. d4 {[%clk 0:02:48]}  Nf6 {[%clk 0:02:59]} 2. Bg5 {[%clk 0:02:47]}  g6 {[%clk 0:02:58]} 3. Bxf6 {[%clk 0:02:38]}  exf6 {[%clk 0:02:57]} 4. e3 {[%clk 0:02:38]}  f5 {[%clk 0:02:57]} 5. g3 {[%clk 0:02:37]}  h5 {[%clk 0:02:58]} 6. h4 {[%clk 0:02:37]}  d6 {[%clk 0:02:58]} 7. Bg2 {[%clk 0:02:37]}  Bh6 {[%clk 0:02:57]} 8. c4 {[%clk 0:02:38]}  Nd7 {[%clk 0:02:56]} 9. Nh3 {[%clk 0:02:38]}  Nf6 {[%clk 0:02:55]} 10. Nc3 {[%clk 0:02:39]}  Ng4 {[%clk 0:02:55]} 11. a4 {[%clk 0:02:34]}  a5 {[%clk 0:02:51]} 12. Nf4 {[%clk 0:02:33]}  O-O {[%clk 0:02:50]} 13. O-O {[%clk 0:02:31]}  c6 {[%clk 0:02:50]} 14. Rb1 {[%clk 0:02:31]}  Re8 {[%clk 0:02:46]} 15. Qd3 {[%clk 0:02:26]}  g5 {[%clk 0:02:44]} 16. hxg5 {[%clk 0:02:24]}  Qxg5 {[%clk 0:02:44]} 17. Nh3 {[%clk 0:02:06]}  Qf6 {[%clk 0:02:38]} 18. Ne2 {[%clk 0:01:42]}  h4 {[%clk 0:02:36]} 19. e4 {[%clk 0:01:33]}  fxe4 {[%clk 0:01:59]} 20. Bxe4 {[%clk 0:01:32]}  Rxe4 {[%clk 0:01:48]} 21. Qxe4 {[%clk 0:01:32]}  Bf5 {[%clk 0:01:47]} 22. Qf3 {[%clk 0:01:26]}  Bxb1 {[%clk 0:01:04]} 23. Qxg4+ {[%clk 0:01:15]}  Bg6 {[%clk 0:01:03]} 24. Qxh4 {[%clk 0:01:08]}  Qxh4 {[%clk 0:01:01]} 25. gxh4 {[%clk 0:01:09]}  Bd3 {[%clk 0:01:01]} 26. Ng3 {[%clk 0:00:47]}  Bxf1 {[%clk 0:00:59]} 27. Kxf1 {[%clk 0:00:48]}  Bg7 {[%clk 0:00:55]} 28. Nf5 {[%clk 0:00:47]}  Bf6 {[%clk 0:00:46]} 29. Nf4 {[%clk 0:00:42]}  Rd8 {[%clk 0:00:38]} 30. b3 {[%clk 0:00:40]}  Kf8 {[%clk 0:00:35]} 31. Ke2 {[%clk 0:00:39]}  Ke8 {[%clk 0:00:21]} 32. Kf3 {[%clk 0:00:33]}  Kd7 {[%clk 0:00:21]} 33. Nh5 {[%clk 0:00:25]}  Bh8 {[%clk 0:00:20]} 34. Nhg3 {[%clk 0:00:17]}  Re8 {[%clk 0:00:19]} 35. Ne4 {[%clk 0:00:17]}  Re6 {[%clk 0:00:17]} 36. h5 {[%clk 0:00:14]}  Re8 {[%clk 0:00:15]} 37. Ng5 {[%clk 0:00:13]}  Rf8 {[%clk 0:00:14]} 38. Kg4 {[%clk 0:00:13]}  Bf6 {[%clk 0:00:12]} 39. Ne4 {[%clk 0:00:10]}  Bh8 {[%clk 0:00:12]} 40. h6 {[%clk 0:00:10]}  Rg8+ {[%clk 0:00:12]} 41. Kh5 {[%clk 0:00:10]}  Rg1 {[%clk 0:00:12]} 42. Ng5 {[%clk 0:00:10]}  Rh1+ {[%clk 0:00:08]} 43. Kg4 {[%clk 0:00:10]}  Rg1+ {[%clk 0:00:09]} 44. Kf4 {[%clk 0:00:10]}  Rf1 {[%clk 0:00:08]} 45. Ke3 {[%clk 0:00:06]}  Re1+ {[%clk 0:00:08]} 46. Kf3 {[%clk 0:00:06]}  Rb1 {[%clk 0:00:08]} 47. Nxf7 {[%clk 0:00:06]}  Rxb3+ {[%clk 0:00:09]} 48. Kg4 {[%clk 0:00:06]}  Bf6 {[%clk 0:00:09]} 49. N7xd6 {[%clk 0:00:05]}  Rb4 {[%clk 0:00:09]} 50. h7 {[%clk 0:00:04]}  Rxa4 {[%clk 0:00:09]} 51. Nxb7 {[%clk 0:00:04]}  Rxc4 {[%clk 0:00:09]} 52. Nxa5 {[%clk 0:00:04]}  Ra4 {[%clk 0:00:07]} 53. Nb7 {[%clk 0:00:05]}  Ke6 {[%clk 0:00:07]} 54. Nc5+ {[%clk 0:00:04]}  Kd5 {[%clk 0:00:07]} 55. Nxa4 {[%clk 0:00:05]}  c5 {[%clk 0:00:01]} 56. Nxc5 {[%clk 0:00:05]} 1-0


[Site "https://www.chess.com"]

[Event "Titled Tuesday Blitz June 13 Early 2023"]
[White "Smiechu"]
[Black "Liyanage, Ranindu Dilshan"]
[BlackFideId "9915834"]
[WhiteElo "2410"]
[BlackElo "2216"]
[Result "0-1"]
[Round "1"]
[TimeControl "180+2"]
[Date "2023.06.13"]
[WhiteClock "0:00:29"]
[BlackClock "0:01:00"]
[Board "99"]

1. e4 {[%clk 0:02:57]}  c5 {[%clk 0:02:38]} 2. Nf3 {[%clk 0:02:56]}  a6 {[%clk 0:02:32]} 3. Nc3 {[%clk 0:02:55]}  b5 {[%clk 0:02:27]} 4. d4 {[%clk 0:02:51]}  cxd4 {[%clk 0:02:21]} 5. Nxd4 {[%clk 0:02:50]}  Bb7 {[%clk 0:02:21]} 6. a3 {[%clk 0:02:48]}  e6 {[%clk 0:02:17]} 7. Bd3 {[%clk 0:02:47]}  Nf6 {[%clk 0:02:13]} 8. O-O {[%clk 0:02:44]}  Qc7 {[%clk 0:02:13]} 9. Be3 {[%clk 0:02:42]}  h5 {[%clk 0:02:09]} 10. h3 {[%clk 0:02:40]}  Bd6 {[%clk 0:01:52]} 11. f4 {[%clk 0:02:35]}  Bc5 {[%clk 0:01:39]} 12. Qe2 {[%clk 0:02:04]}  d6 {[%clk 0:01:36]} 13. Nf3 {[%clk 0:01:55]}  Nbd7 {[%clk 0:01:28]} 14. Bxc5 {[%clk 0:01:50]}  Qxc5+ {[%clk 0:01:22]} 15. Kh1 {[%clk 0:01:50]}  h4 {[%clk 0:01:22]} 16. Qf2 {[%clk 0:01:36]}  Rc8 {[%clk 0:01:11]} 17. Qxc5 {[%clk 0:01:34]}  Nxc5 {[%clk 0:01:12]} 18. Rae1 {[%clk 0:01:31]}  Nh5 {[%clk 0:01:12]} 19. Ne2 {[%clk 0:01:04]}  Nxd3 {[%clk 0:01:10]} 20. cxd3 {[%clk 0:01:02]}  Rc2 {[%clk 0:01:10]} 21. Kg1 {[%clk 0:00:50]}  Rxb2 {[%clk 0:01:02]} 22. Nxh4 {[%clk 0:00:50]}  Rxe2 {[%clk 0:01:00]} 23. Rxe2 {[%clk 0:00:29]}  Ng3 {[%clk 0:01:00]} 0-1


[Site "https://www.chess.com"]

[Event "Titled Tuesday Blitz June 13 Early 2023"]
[White "Pulpan, Jakub"]
[Black "Grossboss19"]
[WhiteFideId "302759"]
[WhiteElo "2484"]
[BlackElo "2404"]
[Result "0-1"]
[Round "1"]
[TimeControl "180+2"]
[Date "2023.06.13"]
[WhiteClock "0:00:16"]
[BlackClock "0:00:10"]
[Board "104"]

1. Nf3 {[%clk 0:02:57]}  d5 {[%clk 0:02:58]} 2. c4 {[%clk 0:02:54]}  c6 {[%clk 0:02:56]} 3. b3 {[%clk 0:02:50]}  Bg4 {[%clk 0:02:43]} 4. Bb2 {[%clk 0:02:48]}  Nd7 {[%clk 0:02:43]} 5. e3 {[%clk 0:02:47]}  e5 {[%clk 0:02:26]} 6. cxd5 {[%clk 0:02:35]}  cxd5 {[%clk 0:02:02]} 7. h3 {[%clk 0:02:35]}  Bxf3 {[%clk 0:02:01]} 8. Qxf3 {[%clk 0:02:35]}  Ngf6 {[%clk 0:02:00]} 9. Bb5 {[%clk 0:02:35]}  e4 {[%clk 0:01:59]} 10. Qf5 {[%clk 0:02:30]}  a6 {[%clk 0:01:45]} 11. Bxf6 {[%clk 0:01:50]}  gxf6 {[%clk 0:01:42]} 12. Bxd7+ {[%clk 0:01:49]}  Qxd7 {[%clk 0:01:42]} 13. Qxf6 {[%clk 0:01:50]}  Rg8 {[%clk 0:01:33]} 14. Nc3 {[%clk 0:01:50]}  Bg7 {[%clk 0:01:06]} 15. Qg5 {[%clk 0:01:48]}  Kf8 {[%clk 0:00:58]} 16. Qh5 {[%clk 0:01:30]}  Rc8 {[%clk 0:00:45]} 17. O-O-O {[%clk 0:01:27]}  d4 {[%clk 0:00:36]} 18. exd4 {[%clk 0:01:21]}  Qxd4 {[%clk 0:00:35]} 19. Kb1 {[%clk 0:01:10]}  Qd3+ {[%clk 0:00:32]} 20. Kb2 {[%clk 0:01:10]}  Rxc3 {[%clk 0:00:19]} 21. dxc3 {[%clk 0:01:07]}  Qxc3+ {[%clk 0:00:20]} 22. Ka3 {[%clk 0:01:08]}  Qb2+ {[%clk 0:00:20]} 23. Ka4 {[%clk 0:00:59]}  Qxa2+ {[%clk 0:00:12]} 24. Kb4 {[%clk 0:00:57]}  a5+ {[%clk 0:00:12]} 25. Kc5 {[%clk 0:00:44]}  Qc2+ {[%clk 0:00:11]} 26. Kb6 {[%clk 0:00:15]}  Qc6+ {[%clk 0:00:11]} 27. Ka7 {[%clk 0:00:15]}  Qa6+ {[%clk 0:00:10]} 28. Kb8 {[%clk 0:00:16]}  Ke7+ {[%clk 0:00:10]} 29. Kc7 {[%clk 0:00:16]}  Qc6# {[%clk 0:00:10]} 0-1


[Site "https://www.chess.com"]

[Event "Titled Tuesday Blitz June 13 Early 2023"]
[White "Ramirez Vido, Robert Yorisan"]
[Black "Papasimakopoulos, Alexandros"]
[WhiteFideId "3513823"]
[BlackFideId "4244125"]
[WhiteElo "2404"]
[BlackElo "2359"]
[Result "0-1"]
[Round "1"]
[TimeControl "180+2"]
[Date "2023.06.13"]
[WhiteClock "0:00:00"]
[BlackClock "0:00:32"]
[Board "105"]

1. f4 {[%clk 0:02:58]}  d5 {[%clk 0:02:52]} 2. Nf3 {[%clk 0:02:58]}  Nf6 {[%clk 0:02:51]} 3. g3 {[%clk 0:02:54]}  Bf5 {[%clk 0:02:50]} 4. Bg2 {[%clk 0:02:52]}  e6 {[%clk 0:02:50]} 5. d3 {[%clk 0:02:53]}  c5 {[%clk 0:02:40]} 6. O-O {[%clk 0:02:53]}  Nc6 {[%clk 0:02:40]} 7. Ne5 {[%clk 0:02:49]}  Nxe5 {[%clk 0:02:33]} 8. fxe5 {[%clk 0:02:48]}  Ng4 {[%clk 0:02:30]} 9. c4 {[%clk 0:01:48]}  Nxe5 {[%clk 0:02:28]} 10. cxd5 {[%clk 0:01:47]}  Be7 {[%clk 0:02:20]} 11. Qa4+ {[%clk 0:01:40]}  Qd7 {[%clk 0:02:13]} 12. Qxd7+ {[%clk 0:01:37]}  Kxd7 {[%clk 0:02:14]} 13. dxe6+ {[%clk 0:01:35]}  Bxe6 {[%clk 0:02:14]} 14. Bxb7 {[%clk 0:01:24]}  Rab8 {[%clk 0:02:14]} 15. Bg2 {[%clk 0:01:24]}  Bf6 {[%clk 0:02:09]} 16. Nc3 {[%clk 0:01:21]}  Rhc8 {[%clk 0:01:50]} 17. Ne4 {[%clk 0:01:09]}  Be7 {[%clk 0:01:48]} 18. Bf4 {[%clk 0:01:05]}  f6 {[%clk 0:01:38]} 19. Bxe5 {[%clk 0:01:04]}  fxe5 {[%clk 0:01:39]} 20. b3 {[%clk 0:01:03]}  a5 {[%clk 0:01:38]} 21. Rab1 {[%clk 0:00:53]}  Rb4 {[%clk 0:01:37]} 22. Rfc1 {[%clk 0:00:46]}  h6 {[%clk 0:01:31]} 23. Nc3 {[%clk 0:00:38]}  Bg5 {[%clk 0:01:27]} 24. Rc2 {[%clk 0:00:36]}  Be3+ {[%clk 0:01:27]} 25. Kh1 {[%clk 0:00:36]}  Rcb8 {[%clk 0:01:20]} 26. Bd5 {[%clk 0:00:20]}  a4 {[%clk 0:01:13]} 27. Bxe6+ {[%clk 0:00:16]}  Kxe6 {[%clk 0:01:13]} 28. Ne4 {[%clk 0:00:16]}  axb3 {[%clk 0:01:07]} 29. Rxb3 {[%clk 0:00:14]}  Rxb3 {[%clk 0:01:04]} 30. axb3 {[%clk 0:00:15]}  Kd5 {[%clk 0:01:04]} 31. Nc3+ {[%clk 0:00:13]}  Kc6 {[%clk 0:01:04]} 32. Nd1 {[%clk 0:00:13]}  Bg5 {[%clk 0:01:02]} 33. h4 {[%clk 0:00:09]}  Bf6 {[%clk 0:01:01]} 34. Rb2 {[%clk 0:00:08]}  e4 {[%clk 0:01:01]} 35. Rb1 {[%clk 0:00:08]}  exd3 {[%clk 0:01:01]} 36. exd3 {[%clk 0:00:09]}  Rd8 {[%clk 0:00:59]} 37. Nf2 {[%clk 0:00:09]}  Bd4 {[%clk 0:00:54]} 38. Ne4 {[%clk 0:00:09]}  Be3 {[%clk 0:00:55]} 39. Rd1 {[%clk 0:00:08]}  Rb8 {[%clk 0:00:55]} 40. Re1 {[%clk 0:00:07]}  Bd4 {[%clk 0:00:53]} 41. Rb1 {[%clk 0:00:07]}  Kd5 {[%clk 0:00:52]} 42. Kg2 {[%clk 0:00:07]}  Ra8 {[%clk 0:00:50]} 43. b4 {[%clk 0:00:05]}  c4 {[%clk 0:00:44]} 44. Nd2 {[%clk 0:00:01]}  c3 {[%clk 0:00:36]} 45. Ne4 {[%clk 0:00:00]}  Ra2+ {[%clk 0:00:32]} 0-1


[Site "https://www.chess.com"]

[Event "Titled Tuesday Blitz June 13 Early 2023"]
[White "Srihari L R"]
[Black "Tinmaz, Kerem"]
[WhiteFideId "46617116"]
[BlackFideId "44559151"]
[WhiteElo "2334"]
[BlackElo "2153"]
[Result "1-0"]
[Round "1"]
[TimeControl "180+2"]
[Date "2023.06.13"]
[WhiteClock "0:00:50"]
[BlackClock "0:00:00"]
[Board "106"]

1. c4 {[%clk 0:02:58]}  c6 {[%clk 0:02:57]} 2. Nc3 {[%clk 0:02:56]}  d5 {[%clk 0:02:57]} 3. e3 {[%clk 0:02:53]}  Nf6 {[%clk 0:02:56]} 4. Nf3 {[%clk 0:02:53]}  Bf5 {[%clk 0:02:54]} 5. cxd5 {[%clk 0:02:49]}  cxd5 {[%clk 0:02:53]} 6. Qb3 {[%clk 0:02:49]}  Nc6 {[%clk 0:02:50]} 7. Qxb7 {[%clk 0:02:45]}  Bd7 {[%clk 0:02:50]} 8. Qb3 {[%clk 0:02:15]}  Rb8 {[%clk 0:02:49]} 9. Qd1 {[%clk 0:02:15]}  e5 {[%clk 0:02:46]} 10. d4 {[%clk 0:02:15]}  e4 {[%clk 0:02:46]} 11. Nd2 {[%clk 0:02:15]}  Bd6 {[%clk 0:02:36]} 12. Be2 {[%clk 0:02:14]}  h5 {[%clk 0:02:25]} 13. h3 {[%clk 0:02:09]}  g5 {[%clk 0:01:37]} 14. a3 {[%clk 0:02:08]}  Kf8 {[%clk 0:01:31]} 15. b4 {[%clk 0:02:06]}  Kg7 {[%clk 0:01:28]} 16. Nb3 {[%clk 0:02:05]}  g4 {[%clk 0:01:04]} 17. h4 {[%clk 0:01:56]}  g3 {[%clk 0:01:04]} 18. f3 {[%clk 0:01:49]}  exf3 {[%clk 0:00:57]} 19. Bxf3 {[%clk 0:01:49]}  Ng4 {[%clk 0:00:47]} 20. Bxg4 {[%clk 0:01:37]}  hxg4 {[%clk 0:00:43]} 21. Bb2 {[%clk 0:01:32]}  Rxh4 {[%clk 0:00:42]} 22. Rxh4 {[%clk 0:01:32]}  Qxh4 {[%clk 0:00:43]} 23. Kd2 {[%clk 0:01:32]}  Qh2 {[%clk 0:00:35]} 24. Qf1 {[%clk 0:01:29]}  Ne7 {[%clk 0:00:32]} 25. Nc5 {[%clk 0:01:27]}  Bxc5 {[%clk 0:00:30]} 26. dxc5 {[%clk 0:01:28]}  Kg8 {[%clk 0:00:18]} 27. Re1 {[%clk 0:01:23]}  Qh6 {[%clk 0:00:12]} 28. Qf4 {[%clk 0:01:14]}  Qxf4 {[%clk 0:00:07]} 29. exf4 {[%clk 0:01:15]}  Ng6 {[%clk 0:00:04]} 30. Nxd5 {[%clk 0:01:14]}  Bc6 {[%clk 0:00:05]} 31. Nf6+ {[%clk 0:01:12]}  Kf8 {[%clk 0:00:04]} 32. Re3 {[%clk 0:01:08]}  Nxf4 {[%clk 0:00:02]} 33. Be5 {[%clk 0:01:00]}  Nd5 {[%clk 0:00:01]} 34. Bd6+ {[%clk 0:00:53]}  Kg7 {[%clk 0:00:01]} 35. Nxd5 {[%clk 0:00:53]}  Rd8 {[%clk 0:00:00]} 36. Nf4 {[%clk 0:00:50]} 1-0


[Site "https://www.chess.com"]